fUST/lending_fUST_20250422
["ID","MTS","AMOUNT","RATE_DAILY","PERIOD"]
[358633049,1745322644357,-500.0,0.00021917,2]
[358633050,1745322644367,-500.0,0.00021917,2]
[358633051,1745322644380,-500.0,0.00021917,2]
[358633052,1745322644390,-500.0,0.00021917,2]
[358633053,1745322644401,-500.0,0.00021917,2]
[358633054,1745322644411,-500.0,0.00021917,2]
[358633055,1745322644422,-685.52,0.00021917,2]
[358633056,1745322644432,-500.0,0.00021917,2]
[358633057,1745322644442,-500.0,0.00021917,2]
[358633058,1745322644452,-500.0,0.00021917,2]
[358633059,1745322644462,-707.61,0.00021917,2]
[358633060,1745322644473,-500.0,0.00021917,2]
[358633061,1745322644483,-500.0,0.00021917,2]
[358633062,1745322644494,-506.26261494,0.00021917,2]
[358633063,1745322644505,-500.0,0.00021917,2]
[358633064,1745322644515,-504.83227008,0.00021917,2]
[358633065,1745322644526,-500.0,0.00021917,2]
[358633066,1745322644535,-936.86,0.00021917,2]
[358633067,1745322644546,-714.48,0.00021917,2]
[358633068,1745322644557,-500.0,0.00021917,2]
[358633069,1745322644567,-500.0,0.00021917,2]
[358633070,1745322644577,-632.84,0.00021917,2]
[358633071,1745322644589,-503.43116122,0.00021917,2]
[358633072,1745322644599,-2012.38,0.00021917,2]
[358633073,1745322644609,-1851.23,0.00021917,2]
[358633074,1745322644619,-500.0,0.00021917,2]
[358633075,1745322644628,-500.0,0.00021917,2]
[358633076,1745322644639,-500.0,0.00021917,2]
[358633077,1745322644648,-500.0,0.00021917,2]
[358633078,1745322644663,-234.73295558,0.00021917,2]
[358633079,1745322644676,-500.0,0.00021917,2]
[358633080,1745322644686,-500.0,0.00021917,2]
[358633081,1745322644695,-500.0,0.00021917,2]
[358633082,1745322644706,-500.0,0.00021917,2]
[358633083,1745322644716,-500.0,0.00021917,2]
[358633084,1745322644726,-500.0,0.00021917,2]
[358633085,1745322644736,-500.0,0.00021917,2]
[358633086,1745322644746,-500.0,0.00021917,2]
[358633087,1745322644756,-500.0,0.00021917,2]
[358633088,1745322644766,-500.32266971,0.00021917,2]
[358633089,1745322644775,-500.0,0.00021917,2]
[358633090,1745322644787,-500.0,0.00021917,2]
[358633091,1745322644796,-500.0,0.00021917,2]
[358633092,1745322644807,-500.0,0.00021917,2]
[358633093,1745322644817,-500.0,0.00021917,2]
[358633094,1745322644826,-500.0,0.00021917,2]
[358633095,1745322644836,-500.0,0.00021917,2]
[358633096,1745322644846,-500.0,0.00021917,2]
[358633097,1745322644856,-500.0,0.00021917,2]
[358633098,1745322644866,-1199.8,0.00021917,2]
[358633099,1745322644876,-500.0,0.00021917,2]
[358633100,1745322644887,-500.0,0.00021917,2]
[358633101,1745322644897,-500.0,0.00021917,2]
[358633102,1745322644907,-494.82033752,0.00021917,2]
[358633103,1745322644917,-633.17,0.00021917,2]
[358633104,1745322644926,-500.0,0.00021917,2]
[358633105,1745322644936,-500.0,0.00021917,2]
[358633106,1745322644946,-500.0,0.00021917,2]
[358633107,1745322644956,-500.0,0.00021917,2]
[358633108,1745322644965,-502.89055827,0.00021917,2]
[358633109,1745322644975,-4285.22,0.00021917,2]
[358633110,1745322644986,-500.0,0.00021917,2]
[358633111,1745322644996,-500.0,0.00021917,2]
[358633112,1745322645007,-500.0,0.00021917,2]
[358633113,1745322645016,-500.0,0.00021917,2]
[358633114,1745322645026,-500.0,0.00021917,2]
[358633115,1745322645036,-264.05483498,0.00021917,2]
[358633116,1745322645047,-500.0,0.00021917,2]
[358633117,1745322645056,-500.0,0.00021917,2]
[358633118,1745322645066,-510.29906048,0.00021917,2]
[358633119,1745322645075,-500.82449963,0.00021917,2]
[358633120,1745322645085,-500.0,0.00021917,2]
[358633121,1745322645095,-500.0,0.00021917,2]
[358633122,1745322645105,-501.41201005,0.00021917,2]
[358633123,1745322645115,-500.0,0.00021917,2]
[358633124,1745322645125,-500.0,0.00021917,2]
[358633125,1745322645135,-500.0,0.00021917,2]
[358633126,1745322645145,-753.84,0.00021917,2]
[358633127,1745322645154,-500.0,0.00021917,2]
[358633128,1745322645164,-500.0,0.00021917,2]
[358633129,1745322645174,-500.37353793,0.00021917,2]
[358633130,1745322645183,-500.0,0.00021917,2]
[358633131,1745322645193,-500.0,0.00021917,2]
[358633132,1745322645203,-500.0,0.00021917,2]
[358633133,1745322645213,-500.0,0.00021917,2]
[358633134,1745322645223,-500.0,0.00021917,2]
[358633135,1745322645233,-225.394442,0.00021918,2]
[358633136,1745322645243,-282.28074123,0.00021918,2]
[358633137,1745322645253,-500.0,0.00021918,2]
[358633138,1745322645263,-500.0,0.00021918,2]
[358633139,1745322645273,-151.0,0.00021918,2]
[358633140,1745322645283,-260.12531393,0.00021918,2]
[358633141,1745322645310,-151.0,0.00021918,2]
[358633142,1745322645325,-151.0,0.00021918,2]
[358633143,1745322645337,-151.0,0.00021918,2]
[358633144,1745322645351,-500.0,0.00021918,2]
[358633145,1745322645362,-151.0,0.00021918,2]
[358633146,1745322645372,-500.0,0.00021918,2]
[358633147,1745322645383,-166.0,0.00021957,2]
[358633148,1745322645394,-9702.0,0.00022,2]
[358633149,1745322645404,-19217.27503453,0.00022141,2]
[358633150,1745322645414,-500.0,0.00022191,2]
[358633151,1745322645425,-500.0,0.00022191,2]
[358633152,1745322645437,-500.0,0.00022191,2]
[358633153,1745322645447,-500.0,0.00022191,2]
[358633154,1745322645457,-500.0,0.00022191,2]
[358633155,1745322645467,-500.0,0.00022191,2]
[358633156,1745322645478,-500.0,0.00022191,2]
[358633157,1745322645488,-331.99819053,0.00022191,2]
[358633158,1745322645499,-500.0,0.00022191,2]
[358633159,1745322645509,-500.0,0.00022191,2]
[358633160,1745322645519,-500.0,0.00022191,2]
[358633161,1745322645530,-279.98879875,0.00022191,2]
[358633162,1745322645541,-500.0,0.00022191,2]
[358633163,1745322645551,-500.0,0.00022191,2]
[358633164,1745322645562,-519.34569193,0.00022191,2]
[358633165,1745322645572,-500.0,0.00022191,2]
[358633166,1745322645582,-500.0,0.00022191,2]
[358633168,1745322645593,-500.0,0.00022191,2]
[358633169,1745322645603,-500.0,0.00022191,2]
[358633170,1745322645613,-500.0,0.00022191,2]
[358633171,1745322645624,-387.68245617,0.00022191,2]
[358633172,1745322645634,-500.0,0.00022191,2]
[358633173,1745322645646,-500.0,0.00022191,2]
[358633174,1745322645656,-500.0,0.00022191,2]
[358633175,1745322645667,-500.0,0.00022191,2]
[358633176,1745322645677,-500.0,0.00022191,2]
[358633177,1745322645688,-500.0,0.00022191,2]
[358633178,1745322645698,-500.0,0.00022191,2]
[358633179,1745322645708,-503.91690168,0.00022191,2]
[358633180,1745322645719,-500.0,0.00022191,2]
[358633181,1745322645729,-500.0,0.00022191,2]
[358633182,1745322645740,-500.0,0.00022191,2]
[358633183,1745322645750,-500.0,0.00022191,2]
[358633185,1745322645760,-500.0,0.00022191,2]
[358633186,1745322645771,-501.09037754,0.00022191,2]
[358633187,1745322645780,-221.05642372,0.00022191,2]
[358633188,1745322645790,-502.8591018,0.00022191,2]
[358633189,1745322645801,-504.53398228,0.00022191,2]
[358633190,1745322645811,-504.59063616,0.00022191,2]
[358633191,1745322645821,-500.0,0.00022191,2]
[358633192,1745322645831,-500.0,0.00022191,2]
[358633193,1745322645842,-531.60881479,0.00022191,2]
[358633194,1745322645852,-342.18701394,0.00022191,2]
[358633195,1745322645863,-500.0,0.00022191,2]
[358633196,1745322645873,-500.0,0.00022191,2]
[358633197,1745322645884,-436.69385746,0.00022191,2]
[358633198,1745322645894,-500.0,0.00022191,2]
[358633199,1745322645905,-507.14471791,0.00022191,2]
[358633200,1745322645915,-505.33011739,0.00022191,2]
[358633201,1745322645930,-500.0,0.00022191,2]
[358633202,1745322645941,-500.0,0.00022191,2]
[358633203,1745322645951,-500.0,0.00022191,2]
[358633204,1745322645962,-500.0,0.00022191,2]
[358633205,1745322645973,-500.0,0.00022191,2]
[358633206,1745322645983,-500.0,0.00022191,2]
[358633207,1745322645994,-500.0,0.00022191,2]
[358633208,1745322646004,-508.22097457,0.00022191,2]
[358633209,1745322646015,-635.04,0.00022191,2]
[358633210,1745322646025,-806.76,0.00022191,2]
[358633211,1745322646035,-500.0,0.00022191,2]
[358633212,1745322646046,-500.0,0.00022191,2]
[358633213,1745322646056,-500.0,0.00022191,2]
[358633214,1745322646066,-738.84,0.00022191,2]
[358633215,1745322646076,-500.0,0.00022191,2]
[358633216,1745322646086,-820.42,0.00022191,2]
[358633217,1745322646096,-500.0,0.00022191,2]
[358633218,1745322646106,-500.0,0.00022191,2]
[358633219,1745322646117,-500.0,0.00022191,2]
[358633220,1745322646127,-500.0,0.00022191,2]
[358633221,1745322646138,-500.0,0.00022191,2]
[358633222,1745322646148,-532.79272639,0.00022191,2]
[358633223,1745322646159,-500.0,0.00022191,2]
[358633224,1745322646168,-457.02890223,0.00022191,2]
[358633225,1745322646179,-500.0,0.00022191,2]
[358633226,1745322646189,-500.0,0.00022191,2]
[358633227,1745322646199,-500.0,0.00022191,2]
[358633228,1745322646210,-500.0,0.00022191,2]
[358633229,1745322646221,-500.0,0.00022191,2]
[358633230,1745322646231,-504.3851446,0.00022191,2]
[358633231,1745322646241,-511.76396241,0.00022191,2]
[358633232,1745322646253,-500.0,0.00022191,2]
[358633233,1745322646263,-500.0,0.00022191,2]
[358633234,1745322646274,-504.4368688,0.00022191,2]
[358633235,1745322646284,-500.0,0.00022191,2]
[358633236,1745322646295,-500.0,0.00022191,2]
[358633237,1745322646306,-1155.95,0.00022191,2]
[358633238,1745322646316,-503.31382095,0.00022191,2]
[358633239,1745322646326,-500.0,0.00022191,2]
[358633240,1745322646339,-514.96835971,0.00022191,2]
[358633241,1745322646350,-500.0,0.00022191,2]
[358633242,1745322646360,-506.67902245,0.00022191,2]
[358633243,1745322646371,-510.87734503,0.00022191,2]
[358633244,1745322646384,-508.61607379,0.00022191,2]
[358633245,1745322646394,-502.87730235,0.00022191,2]
[358633246,1745322646404,-500.0,0.00022191,2]
[358633247,1745322646415,-505.82770341,0.00022191,2]
[358633248,1745322646426,-524.65146944,0.00022191,2]
[358633249,1745322646436,-673.16,0.00022191,2]
[358633250,1745322646446,-466.83377839,0.00022191,2]
[358633251,1745322646456,-502.78677908,0.00022191,2]
[358633252,1745322646466,-500.0,0.00022191,2]
[358633253,1745322646476,-500.0,0.00022191,2]
[358633254,1745322646486,-496.08129879,0.00022191,2]
[358633255,1745322646496,-500.0,0.00022191,2]
[358633256,1745322646507,-500.0,0.00022191,2]
[358633257,1745322646517,-500.0,0.00022191,2]
[358633258,1745322646527,-500.0,0.00022191,2]
[358633259,1745322646538,-500.0,0.00022191,2]
[358633260,1745322646548,-500.0,0.00022191,2]
[358633261,1745322646560,-500.0,0.00022191,2]
[358633262,1745322646570,-841.04,0.00022191,2]
[358633263,1745322646580,-500.0,0.00022191,2]
[358633264,1745322646590,-500.0,0.00022191,2]
[358633265,1745322646601,-500.0,0.00022191,2]
[358633266,1745322646611,-500.0,0.00022191,2]
[358633267,1745322646622,-500.0,0.00022191,2]
[358633268,1745322646632,-402.96631046,0.00022191,2]
[358633269,1745322646642,-500.0,0.00022191,2]
[358633270,1745322646653,-568.27800806,0.00022191,2]
[358633271,1745322646662,-528.54,0.00022191,2]
[358633272,1745322646672,-500.0,0.00022191,2]
[358633273,1745322646683,-500.0,0.00022191,2]
[358633274,1745322646694,-500.0,0.00022191,2]
[358633275,1745322646704,-510.65501489,0.00022191,2]
[358633276,1745322646714,-500.0,0.00022191,2]
[358633277,1745322646725,-500.0,0.00022191,2]
[358633278,1745322646736,-500.0,0.00022191,2]
[358633279,1745322646746,-621.47,0.00022191,2]
[358633280,1745322646755,-236.84519714,0.00022191,2]
[358633281,1745322646766,-500.0,0.00022191,2]
[358633282,1745322646776,-690.83,0.00022191,2]
[358633283,1745322646786,-500.0,0.00022191,2]
[358633284,1745322646797,-500.0,0.00022191,2]
[358633285,1745322646807,-1645.3,0.00022191,2]
[358633286,1745322646818,-500.0,0.00022191,2]
[358633287,1745322646828,-591.89,0.00022191,2]
[358633288,1745322646838,-500.0,0.00022191,2]
[358633289,1745322646847,-500.0,0.00022191,2]
[358633290,1745322646857,-500.0,0.00022191,2]
[358633291,1745322646867,-502.01,0.00022191,2]
[358633292,1745322646878,-641.02,0.00022191,2]
[358633293,1745322646888,-528.1,0.00022191,2]
[358633294,1745322646898,-3520.95,0.00022191,2]
[358633295,1745322646908,-260.82011822,0.00022191,2]
[358633296,1745322646918,-3373.02,0.00022191,2]
[358633297,1745322646928,-500.0,0.00022191,2]
[358633298,1745322646938,-500.0,0.00022191,2]
[358633299,1745322646947,-500.0,0.00022191,2]
[358633300,1745322646958,-500.0,0.00022191,2]
[358633301,1745322647154,-500.0,0.00022191,2]
[358633302,1745322647166,-528.23856941,0.00022191,2]
[358633303,1745322647177,-500.0,0.00022191,2]
[358633304,1745322647187,-500.0,0.00022191,2]
[358633305,1745322647197,-500.0,0.00022191,2]
[358633306,1745322647207,-11275.1,0.00022191,2]
[358633307,1745322647218,-500.0,0.00022191,2]
[358633308,1745322647228,-500.0,0.00022191,2]
[358633309,1745322647238,-500.0,0.00022191,2]
[358633310,1745322647248,-514.37271961,0.00022191,2]
[358633311,1745322647258,-558.53,0.00022191,2]
[358633312,1745322647268,-500.0,0.00022191,2]
[358633313,1745322647278,-500.0,0.00022191,2]
[358633314,1745322647287,-500.0,0.00022191,2]
[358633315,1745322647298,-500.0,0.00022191,2]
[358633316,1745322647307,-500.0,0.00022191,2]
[358633317,1745322647317,-500.0,0.00022191,2]
[358633318,1745322647328,-539.74,0.00022191,2]
[358633319,1745322647343,-500.0,0.00022191,2]
[358633320,1745322647357,-500.0,0.00022191,2]
[358633321,1745322647367,-500.0,0.00022191,2]
[358633322,1745322647378,-500.0,0.00022191,2]
[358633323,1745322647388,-500.0,0.00022191,2]
[358633324,1745322647407,-759.51,0.00022191,2]
[358633325,1745322647425,-500.0,0.00022191,2]
[358633326,1745322647436,-500.0,0.00022191,2]
[358633327,1745322647447,-287.67397708,0.00022191,2]
[358633328,1745322647457,-500.0,0.00022191,2]
[358633329,1745322647468,-500.0,0.00022191,2]
[358633330,1745322647479,-500.0,0.00022191,2]
[358633331,1745322647490,-500.0,0.00022191,2]
[358633332,1745322647501,-500.0,0.00022191,2]
[358633333,1745322647511,-500.0,0.00022191,2]
[358633334,1745322647523,-649.19,0.00022191,2]
[358633335,1745322647534,-500.0,0.00022191,2]
[358633336,1745322647545,-560.1365621,0.00022191,2]
[358633337,1745322647555,-502.71449283,0.00022191,2]
[358633338,1745322647566,-500.0,0.00022191,2]
[358633339,1745322647577,-500.0,0.00022191,2]
[358633340,1745322647587,-500.0,0.00022191,2]
[358633341,1745322647598,-500.0,0.00022191,2]
[358633342,1745322647608,-500.0,0.00022191,2]
[358633343,1745322647618,-500.0,0.00022191,2]
[358633344,1745322647628,-500.0,0.00022191,2]
[358633345,1745322647639,-500.0,0.00022191,2]
[358633346,1745322647648,-500.0,0.00022191,2]
[358633347,1745322647659,-500.0,0.00022191,2]
[358633348,1745322647669,-534.33,0.00022191,2]
[358633349,1745322647680,-732.21,0.00022191,2]
[358633350,1745322647690,-500.0,0.00022191,2]
[358633351,1745322647701,-500.0,0.00022191,2]
[358633352,1745322647711,-500.0,0.00022191,2]
[358633353,1745322647722,-500.0,0.00022191,2]
[358633354,1745322647732,-500.0,0.00022191,2]
[358633355,1745322647742,-277.99723843,0.00022191,2]
[358633356,1745322647753,-500.0,0.00022191,2]
[358633357,1745322647763,-500.0,0.00022191,2]
[358633358,1745322647773,-520.10718635,0.00022191,2]
[358633359,1745322647784,-500.0,0.00022191,2]
[358633360,1745322647795,-500.0,0.00022191,2]
[358633361,1745322647805,-500.0,0.00022191,2]
[358633362,1745322647816,-501.69938003,0.00022191,2]
[358633363,1745322647827,-500.0,0.00022191,2]
[358633364,1745322647838,-500.0,0.00022191,2]
[358633365,1745322647848,-500.0,0.00022191,2]
[358633366,1745322647860,-500.0,0.00022191,2]
[358633367,1745322647870,-500.0,0.00022191,2]
[358633368,1745322647880,-6254.96,0.00022191,2]
[358633369,1745322647891,-1819.9,0.00022191,2]
[358633370,1745322647901,-500.0,0.00022191,2]
[358633371,1745322647912,-563.65,0.00022191,2]
[358633372,1745322647922,-500.0,0.00022191,2]
[358633373,1745322647933,-500.0,0.00022191,2]
[358633374,1745322647944,-651.76,0.00022191,2]
[358633375,1745322647954,-500.0,0.00022191,2]
[358633376,1745322647964,-500.0,0.00022191,2]
[358633377,1745322647974,-500.0,0.00022191,2]
[358633378,1745322647983,-515.05,0.00022191,2]
[358633379,1745322647994,-500.0,0.00022191,2]
[358633380,1745322648004,-500.0,0.00022191,2]
[358633381,1745322648014,-500.0,0.00022191,2]
[358633382,1745322648024,-500.0,0.00022191,2]
[358633383,1745322648034,-500.0,0.00022191,2]
[358633384,1745322648045,-500.0,0.00022191,2]
[358633385,1745322648055,-500.0,0.00022191,2]
[358633386,1745322648065,-500.0,0.00022191,2]
[358633387,1745322648075,-500.0,0.00022191,2]
[358633388,1745322648086,-685.52,0.00022191,2]
[358633389,1745322648096,-500.0,0.00022191,2]
[358633390,1745322648106,-500.0,0.00022191,2]
[358633391,1745322648117,-500.0,0.00022191,2]
[358633392,1745322648128,-707.61,0.00022191,2]
[358633393,1745322648138,-500.0,0.00022191,2]
[358633394,1745322648148,-936.86,0.00022191,2]
[358633395,1745322648158,-714.48,0.00022191,2]
[358633396,1745322648169,-500.0,0.00022191,2]
[358633397,1745322648178,-632.84,0.00022191,2]
[358633398,1745322648188,-2012.38,0.00022191,2]
[358633399,1745322648198,-1851.23,0.00022191,2]
[358633400,1745322648209,-500.0,0.00022191,2]
[358633401,1745322648219,-500.0,0.00022191,2]
[358633402,1745322648229,-500.0,0.00022191,2]
[358633403,1745322648239,-500.0,0.00022191,2]
[358633404,1745322648249,-500.0,0.00022191,2]
[358633405,1745322648259,-500.0,0.00022191,2]
[358633406,1745322648269,-500.0,0.00022191,2]
[358633407,1745322648280,-500.0,0.00022191,2]
[358633408,1745322648291,-500.0,0.00022191,2]
[358633409,1745322648302,-1199.8,0.00022191,2]
[358633410,1745322648312,-633.17,0.00022191,2]
[358633411,1745322648324,-500.0,0.00022191,2]
[358633412,1745322648336,-500.0,0.00022191,2]
[358633413,1745322648350,-500.0,0.00022191,2]
[358633414,1745322648360,-500.0,0.00022191,2]
[358633415,1745322648372,-4285.22,0.00022191,2]
[358633416,1745322648382,-500.0,0.00022191,2]
[358633417,1745322648393,-500.0,0.00022191,2]
[358633418,1745322648403,-515.51396382,0.00022191,2]
[358633419,1745322648414,-500.0,0.00022191,2]
[358633420,1745322648425,-500.0,0.00022191,2]
[358633421,1745322648436,-500.0,0.00022191,2]
[358633422,1745322648446,-500.0,0.00022191,2]
[358633423,1745322648456,-753.84,0.00022191,2]
[358633424,1745322648466,-506.66075598,0.00022191,2]
[358633425,1745322648476,-500.0,0.00022191,2]
[358633426,1745322648486,-500.0,0.00022191,2]
[358633427,1745322648496,-500.0,0.00022191,2]
[358633428,1745322648506,-57366.88706571,0.00022365,2]
[358633429,1745322648516,-23664.75128926,0.00022365,3]
[358633430,1745322648526,-160.0,0.00022365,3]
[358633431,1745322648536,-160.0,0.00022365,3]
[358633432,1745322648546,-370000.0,0.00022365,2]
[358633433,1745322648556,-362.19133297,0.00022373,2]
[358633434,1745322648566,-500.0,0.00022373,2]
[358633435,1745322648576,-500.0,0.00022373,2]
[358633436,1745322648587,-501.19314122,0.00022373,2]
[358633437,1745322648597,-500.0,0.00022373,2]
[358633438,1745322648607,-500.0,0.00022373,2]
[358633439,1745322648618,-500.0,0.00022373,2]
[358633440,1745322648629,-500.0,0.00022373,2]
[358633441,1745322648640,-265.40714463,0.00022373,2]
[358633442,1745322648650,-500.0,0.00022373,2]
[358633443,1745322648660,-268.33081743,0.00022373,2]
[358633444,1745322648670,-500.0,0.00022373,2]
[358633445,1745322648680,-500.0,0.00022373,2]
[358633446,1745322648690,-500.0,0.00022373,2]
[358633447,1745322648701,-233.43895437,0.00022373,2]
[358633448,1745322648712,-500.0,0.00022373,2]
[358633449,1745322648723,-556.61160428,0.00022373,2]
[358633450,1745322648733,-500.0,0.00022373,2]
[358633451,1745322648744,-300.0,0.00022373,2]
[358633452,1745322648755,-500.0,0.00022373,2]
[358633453,1745322648766,-729.16666667,0.00022465,3]
[358633454,1745322648776,-500.0,0.00022465,2]
[358633455,1745322648786,-500.0,0.00022465,2]
[358633456,1745322648797,-500.0,0.00022465,2]
[358633457,1745322648808,-500.0,0.00022465,2]
[358633458,1745322648819,-500.0,0.00022465,2]
[358633459,1745322648829,-500.0,0.00022465,2]
[358633460,1745322648839,-504.48898215,0.00022465,2]
[358633461,1745322648850,-500.0,0.00022465,2]
[358633462,1745322648861,-500.0,0.00022465,2]
[358633463,1745322648874,-500.0,0.00022465,2]
[358633464,1745322648884,-500.0,0.00022465,2]
[358633465,1745322648894,-500.0,0.00022465,2]
[358633466,1745322648903,-500.0,0.00022465,2]
[358633467,1745322648913,-500.0,0.00022465,2]
[358633468,1745322648923,-500.0,0.00022465,2]
[358633469,1745322648933,-500.0,0.00022465,2]
[358633470,1745322648942,-500.0,0.00022465,2]
[358633471,1745322648952,-500.0,0.00022465,2]
[358633472,1745322648962,-500.0,0.00022465,2]
[358633473,1745322648972,-500.0,0.00022465,2]
[358633474,1745322648981,-512.35601815,0.00022465,2]
[358633475,1745322648990,-500.0,0.00022465,2]
[358633476,1745322649000,-500.0,0.00022465,2]
[358633477,1745322649010,-503.65206564,0.00022465,2]
[358633478,1745322649019,-502.68089018,0.00022465,2]
[358633479,1745322649030,-500.0,0.00022465,2]
[358633480,1745322649039,-500.0,0.00022465,2]
[358633481,1745322649050,-629.71255057,0.00022465,2]
[358633482,1745322649060,-635.04,0.00022465,2]
[358633483,1745322649070,-806.76,0.00022465,2]
[358633484,1745322649080,-500.0,0.00022465,2]
[358633485,1745322649090,-500.0,0.00022465,2]
[358633486,1745322649101,-500.0,0.00022465,2]
[358633487,1745322649111,-738.84,0.00022465,2]
[358633488,1745322649123,-500.0,0.00022465,2]
[358633489,1745322649133,-820.42,0.00022465,2]
[358633490,1745322649143,-500.0,0.00022465,2]
[358633491,1745322649154,-509.38929486,0.00022465,2]
[358633492,1745322649164,-399.85441223,0.00022465,2]
[358633493,1745322649175,-500.0,0.00022465,2]
[358633494,1745322649185,-500.0,0.00022465,2]
[358633495,1745322649195,-500.0,0.00022465,2]
[358633496,1745322649205,-500.0,0.00022465,2]
[358633497,1745322649215,-516.49854394,0.00022465,2]
[358633498,1745322649225,-504.59641593,0.00022465,2]
[358633499,1745322649234,-509.31683203,0.00022465,2]
[358633500,1745322649244,-1155.95,0.00022465,2]
[358633501,1745322649254,-500.0,0.00022465,2]
[358633502,1745322649264,-673.16,0.00022465,2]
[358633503,1745322649274,-500.0,0.00022465,2]
[358633504,1745322649284,-500.0,0.00022465,2]
[358633505,1745322649295,-500.0,0.00022465,2]
[358633506,1745322649305,-503.04762056,0.00022465,2]
[358633507,1745322649316,-500.0,0.00022465,2]
[358633508,1745322649327,-500.0,0.00022465,2]
[358633509,1745322649339,-500.0,0.00022465,2]
[358633510,1745322649352,-500.0,0.00022465,2]
[358633511,1745322649362,-841.04,0.00022465,2]
[358633512,1745322649374,-500.0,0.00022465,2]
[358633513,1745322649384,-500.0,0.00022465,2]
[358633514,1745322649395,-500.0,0.00022465,2]
[358633515,1745322649405,-500.0,0.00022465,2]
[358633516,1745322649415,-500.0,0.00022465,2]
[358633517,1745322649426,-507.93497376,0.00022465,2]
[358633518,1745322649437,-500.0,0.00022465,2]
[358633519,1745322649449,-500.0,0.00022465,2]
[358633520,1745322649459,-500.0,0.00022465,2]
[358633521,1745322649470,-621.47,0.00022465,2]
[358633522,1745322649480,-500.0,0.00022465,2]
[358633523,1745322649490,-690.83,0.00022465,2]
[358633524,1745322649500,-228.29434969,0.00022465,2]
[358633525,1745322649510,-500.0,0.00022465,2]
[358633526,1745322649520,-1645.3,0.00022465,2]
[358633527,1745322649531,-500.0,0.00022465,2]
[358633528,1745322649541,-591.89,0.00022465,2]
[358633529,1745322649551,-500.0,0.00022465,2]
[358633530,1745322649561,-500.0,0.00022465,2]
[358633531,1745322649572,-500.0,0.00022465,2]
[358633532,1745322649582,-502.01,0.00022465,2]
[358633533,1745322649592,-641.02,0.00022465,2]
[358633534,1745322649602,-528.1,0.00022465,2]
[358633535,1745322649613,-3520.95,0.00022465,2]
[358633536,1745322649624,-3373.02,0.00022465,2]
[358633537,1745322649634,-500.0,0.00022465,2]
[358633538,1745322649645,-500.0,0.00022465,2]
[358633539,1745322649655,-500.0,0.00022465,2]
[358633540,1745322649665,-500.0,0.00022465,2]
[358633541,1745322649675,-500.0,0.00022465,2]
[358633542,1745322649685,-500.0,0.00022465,2]
[358633543,1745322649695,-500.0,0.00022465,2]
[358633544,1745322649706,-11275.1,0.00022465,2]
[358633545,1745322649716,-500.0,0.00022465,2]
[358633546,1745322649726,-500.0,0.00022465,2]
[358633547,1745322649735,-558.53,0.00022465,2]
[358633548,1745322649746,-500.0,0.00022465,2]
[358633549,1745322649756,-500.0,0.00022465,2]
[358633550,1745322649766,-500.0,0.00022465,2]